bitfinex/quotes_ETHUSD_20241023
["timestamp","ask_amount","ask_price","bid_price","bid_amount"]
[1729711955746,4.0016,2499.0,2498.9,0.01]
[1729711956125,4.0668663,2499.0,2498.9,0.01]
[1729711956555,0.0652663,2499.0,2498.9,0.01]
[1729711957877,4.00116,2499.3,2498.9,0.01]
[1729711958040,0.0652663,2499.0,2498.9,0.01]
[1729711958241,4.00141,2499.2,2498.9,0.01]
[1729711958566,0.0652663,2499.0,2498.9,0.01]
[1729711958772,4.00146,2499.1,2498.9,0.01]
[1729711958940,4.00146,2499.1,2498.6,4.55215]
[1729711958941,4.00183,2498.9,2498.6,0.02]
[1729711959264,4.00161,2499.0,2498.9,0.01]
[1729711959762,1.6318,2499.5,2498.7,0.01]
[1729711960067,4.00185,2498.9,2498.7,0.01]
[1729711960828,4.00192,2498.8,2498.6,0.01]
[1729711961167,4.00208,2498.7,2498.6,0.01]
[1729711961668,4.00192,2498.8,2498.3,0.01]
[1729711961970,5.5357,2499.0,2498.0,0.01]
[1729711961971,5.53618,2498.7,2498.0,0.01]
[1729711962174,4.00304,2498.1,2498.0,0.01]
[1729711962465,8.006,2498.2,2498.0,0.01]
[1729711962667,4.003,2498.2,2498.1,0.01]
[1729711963273,4.00275,2498.3,2498.1,0.01]
[1729711964073,4.00288,2498.2,2498.1,0.01]
[1729711964271,4.00275,2498.3,2498.1,0.01]
[1729711964471,8.00558,2498.3,2498.1,0.01]
[1729711965068,4.00288,2498.2,2498.1,0.01]
[1729711965669,4.00288,2498.2,2498.0,0.01]
[1729711965670,4.00304,2498.1,2498.0,0.01]
[1729711966878,4.00304,2498.1,2497.6,2.2471983]
[1729711966879,4.0035,2497.9,2497.6,2.2471983]
[1729711967054,4.00331,2498.0,2497.6,0.5809983]
[1729711967383,4.00331,2498.0,2497.7,0.01]
[1729711967678,4.00352,2497.9,2497.7,0.01]
[1729711968036,4.00352,2497.8,2497.7,0.01]
[1729711968243,4.00357,2497.8,2497.7,0.01]
[1729711968839,1.6646,2498.4,2497.9,0.01]
[1729711969039,8.00566,2498.3,2497.9,0.01]
[1729711969361,4.00294,2498.2,2497.9,0.01]
[1729711969738,4.00294,2498.2,2498.1,0.01]
[1729711970563,4.00279,2498.3,2498.1,0.01]
[1729711970759,1.6609,2498.9,2498.4,0.01]
[1729711971073,4.00224,2498.6,2498.1,0.02]
[1729711971247,4.00258,2498.4,2498.1,0.02]
[1729711971451,4.00272,2498.3,2498.1,0.02]
[1729711971774,4.0678721,2498.3,2498.1,0.01]
[1729711972142,4.00288,2498.2,2498.0,1.5866]
[1729711972482,4.00273,2498.3,2498.2,0.01]
[1729711972849,4.00253,2498.5,2498.2,0.01]
[1729711973057,4.00258,2498.4,2498.2,0.01]
[1729711976146,4.00258,2498.4,2498.0,1.5866]
[1729711976147,4.00297,2498.2,2498.0,0.02]
[1729711976387,4.00256,2498.4,2498.3,0.01]
[1729711976610,4.00256,2498.4,2498.2,0.01]
[1729711976611,4.0028,2498.3,2498.2,0.01]
[1729711976943,4.00256,2498.4,2498.2,0.01]
[1729711977176,4.00256,2498.4,2498.3,0.01]
[1729711978282,4.0024,2498.5,2498.3,0.01]
[1729711978450,1.511,2498.7,2498.3,0.01]
[1729711978451,8.00432,2498.7,2498.3,0.01]
[1729711978781,4.00231,2498.6,2498.4,0.01]
[1729711979349,4.00188,2498.9,2498.6,0.02]
[1729711979551,8.00374,2498.9,2498.6,0.02]
[1729711979762,4.00208,2498.7,2498.6,0.01]
[1729711981602,4.00225,2498.6,2498.4,1.5482]
[1729711981909,4.00209,2498.7,2498.6,0.01]
[1729711982778,4.00221,2498.7,2498.4,1.5482]
[1729711982971,4.00221,2498.7,2498.6,0.01]
[1729711983399,4.00192,2498.8,2498.6,0.01]
[1729711983899,1.5032,2499.2,2498.7,0.01]
[1729711984217,4.00075,2499.6,2499.1,0.02]
[1729711984628,8.00148,2499.6,2499.1,0.02]
[1729711984793,4.00073,2499.6,2499.1,0.02]
[1729711984975,4.00073,2499.6,2499.3,0.01]
[1729711985183,4.00048,2499.7,2499.3,0.02]
[1729711985377,4.00048,2499.7,2499.5,0.01]
[1729711986209,4.0660662,2499.6,2499.5,0.01]
[1729711988021,4.00112,2499.3,2499.0,0.02]
[1729711988181,4.00155,2499.1,2499.0,0.01]
[1729711988690,4.0669762,2499.1,2499.0,0.01]
[1729711990311,4.0669762,2499.1,2498.8,0.01]
[1729711990512,4.0669762,2499.1,2499.0,0.01]
[1729711993225,0.0654262,2499.1,2499.0,0.02]
[1729711993522,4.00097,2499.4,2499.3,0.01]
[1729711993701,4.00097,2499.4,2499.3,0.02]
[1729711993888,1.578,2499.7,2499.0,0.01]
[1729711993889,4.00138,2499.2,2499.0,0.01]
[1729711994092,4.00064,2499.6,2499.0,0.02]
[1729711994292,4.00132,2499.2,2499.0,0.02]
[1729711994500,4.00144,2499.1,2499.0,0.02]
[1729711995420,4.00131,2499.2,2499.0,0.02]
[1729711995625,4.00121,2499.3,2499.0,0.02]
[1729711996215,4.00137,2499.2,2499.0,0.02]
[1729711997523,4.00144,2499.1,2499.0,0.02]
[1729711997717,4.00144,2499.1,2499.0,0.01]
[1729711998284,1.5569,2499.2,2498.7,0.01]
[1729711998484,4.00176,2498.9,2498.8,0.01]
[1729711999283,4.00192,2498.8,2498.7,0.01]
[1729712001085,4.06822173,2498.8,2498.6,0.01]
[1729712001292,4.00208,2498.7,2498.6,0.01]
[1729712001618,4.00256,2498.4,2498.2,0.01]
[1729712002123,0.06619515,2498.3,2498.2,0.01]
[1729712002725,4.0024,2498.5,2498.2,0.01]
[1729712002947,0.06619515,2498.3,2498.2,0.01]
[1729712003110,4.00259,2498.4,2498.2,0.01]
[1729712003312,0.06619515,2498.3,2498.2,0.01]
[1729712004144,4.00307,2498.1,2497.9,0.59098303]
[1729712004441,4.0032,2498.0,2497.9,0.58098303]
[1729712004592,4.06915912,2498.0,2497.9,0.58098303]
[1729712008661,4.06915912,2498.0,2497.4,0.02]
[1729712008662,4.00387,2497.6,2497.4,0.02]
[1729712008948,4.00342,2497.9,2497.6,0.01]
[1729712009145,4.00359,2497.8,2497.6,0.01]
[1729712009305,4.00368,2497.7,2497.6,0.01]
[1729712009709,4.00368,2497.7,2497.4,0.01]
[1729712009710,4.00368,2497.7,2497.4,0.02]
[1729712009949,4.00368,2497.7,2497.6,0.01]
[1729712011220,4.00354,2497.8,2497.6,0.02]
[1729712011555,8.00719,2497.8,2497.6,0.02]
[1729712011935,4.00368,2497.7,2497.6,0.02]
[1729712012144,4.00368,2497.7,2497.6,0.01]
[1729712012320,4.00368,2497.7,2497.6,0.02]
[1729712012923,4.004,2497.5,2497.3,0.01]
[1729712013122,4.004,2497.5,2497.4,0.01]
[1729712015412,4.00386,2497.6,2497.4,0.01]
[1729712015762,4.00353,2497.8,2497.6,0.01]
[1729712016250,0.0645503,2497.7,2497.6,0.01]
[1729712016748,4.0682303,2497.7,2497.6,0.01]
[1729712022848,8.0720103,2497.7,2497.6,0.01]
[1729712023044,4.0682303,2497.7,2497.5,0.01]
[1729712023253,4.00384,2497.6,2497.5,0.01]
[1729712023554,4.004,2497.5,2497.4,0.01]
[1729712023765,4.00416,2497.4,2497.3,0.01]
[1729712024260,4.0680017,2497.4,2497.3,0.01]
[1729712028441,0.0638417,2497.4,2497.3,0.01]
[1729712030142,4.00393,2497.6,2497.3,0.01]
[1729712030370,0.06375024,2497.4,2497.3,0.01]
[1729712030567,4.00393,2497.6,2497.3,0.01]
[1729712030738,4.00353,2497.8,2497.6,0.01]
[1729712031078,4.00368,2497.7,2497.6,0.01]
[1729712031255,4.06743024,2497.7,2497.6,0.01]
[1729712031434,0.06375024,2497.7,2497.6,0.01]
[1729712031635,4.06743024,2497.7,2497.6,0.01]
[1729712031834,4.00368,2497.7,2497.6,0.01]
[1729712032170,4.06743024,2497.7,2497.6,0.01]
[1729712034467,4.06743024,2497.7,2497.5,0.01]
[1729712034468,4.00384,2497.6,2497.5,0.01]
[1729712034666,0.06375024,2497.7,2497.6,0.01]
[1729712034876,5.39667394,2498.5,2498.1,0.01]
[1729712035035,4.00288,2498.3,2498.0,0.01]
[1729712035240,5.39667394,2498.5,2498.0,0.01]
[1729712035440,4.0029,2498.2,2498.0,0.01]
[1729712035666,8.00589,2498.2,2498.0,0.01]
[1729712035845,4.0029,2498.2,2498.0,0.01]
[1729712036046,8.00586,2498.2,2498.0,0.01]
[1729712036714,4.00304,2498.1,2498.0,0.01]
[1729712037340,4.0029,2498.2,2498.0,0.01]
[1729712037541,8.00587,2498.2,2498.0,0.01]
[1729712037757,4.0029,2498.2,2498.0,0.01]
[1729712037957,4.0029,2498.2,2498.1,0.01]
[1729712038473,4.00352,2497.8,2497.7,0.01]
[1729712039656,4.0033,2498.0,2497.8,1.5265]
[1729712041577,4.00336,2497.9,2497.8,1.5265]
[1729712041987,4.00336,2497.9,2497.8,0.01]
[1729712042160,4.00336,2497.9,2497.7,0.01]
[1729712042161,4.00352,2497.8,2497.7,0.01]
[1729712043645,4.00352,2497.8,2497.7,0.02]
[1729712046367,4.06778842,2497.8,2497.7,0.02]
[1729712047863,0.06426842,2497.8,2497.7,0.02]
[1729712048069,0.06426842,2497.8,2497.7,1.6819]
[1729712048270,4.00337,2497.9,2497.7,1.6819]
[1729712048575,0.06426842,2497.8,2497.7,1.6819]
[1729712050190,0.06426842,2497.8,2497.7,6.23558]
[1729712050377,4.00305,2498.1,2497.8,0.55]
[1729712050898,4.00299,2498.2,2498.0,0.01]
[1729712051296,1.5682,2498.9,2498.4,0.01]
[1729712051498,0.62643954,2499.2,2498.7,0.01]
[1729712051499,4.00192,2498.8,2498.7,0.01]
[1729712051859,4.00182,2498.9,2498.7,0.01]
[1729712052199,4.00182,2498.9,2498.8,0.01]
[1729712052689,4.00192,2498.8,2498.6,0.01]
[1729712052861,4.00208,2498.7,2498.6,0.01]
[1729712055883,4.00224,2498.6,2498.5,0.01]
[1729712056965,4.0024,2498.5,2498.4,0.01]
[1729712057774,4.00201,2498.8,2498.7,0.01]
[1729712057974,4.0017,2499.0,2498.7,0.01]
[1729712058204,4.0017,2499.0,2498.7,0.02]
[1729712058380,4.00168,2499.0,2498.7,0.02]
[1729712058978,4.00192,2498.8,2498.7,0.01]
[1729712059500,4.00227,2498.6,2498.4,0.02]
[1729712059869,8.00463,2498.6,2498.4,0.02]
[1729712060185,4.0024,2498.5,2498.4,0.02]
[1729712061079,9.6661,2498.7,2498.4,0.02]
[1729712061269,0.06328769,2498.5,2498.4,0.02]
[1729712061469,4.00226,2498.6,2498.4,0.02]
[1729712061666,0.06328769,2498.5,2498.4,0.02]
[1729712061901,4.06568769,2498.5,2498.4,0.02]
[1729712063111,4.06568769,2498.5,2498.4,0.01]
[1729712068108,0.06328769,2498.5,2498.4,0.02]
[1729712068409,0.06328769,2498.5,2498.4,1.6227]
[1729712068580,4.00203,2498.8,2498.6,0.01]
[1729712068787,0.06292175,2498.7,2498.6,0.01]
[1729712068987,4.00203,2498.8,2498.6,0.02]
[1729712069314,0.06292175,2498.7,2498.6,0.02]
[1729712069620,4.00178,2498.9,2498.6,0.02]
[1729712069777,0.06303611,2498.8,2498.6,0.637519]
[1729712070373,4.06497611,2498.8,2498.6,0.637519]
[1729712070623,0.06303611,2498.8,2498.6,0.02]
[1729712070976,0.06303611,2498.8,2498.6,4.02221]
[1729712071208,4.00128,2499.2,2498.9,0.02]
[1729712071515,0.06313522,2499.1,2498.9,0.02]
[1729712072381,0.06313522,2499.1,2498.9,0.57]
[1729712072576,4.00113,2499.3,2499.1,0.01]
[1729712072780,0.06315809,2499.2,2499.1,0.01]
[1729712072982,4.00113,2499.3,2499.1,0.01]
[1729712073218,0.06315809,2499.2,2499.1,0.01]
[1729712073383,4.00136,2499.2,2499.1,0.02]
[1729712073705,0.06315809,2499.2,2499.1,0.02]
[1729712074017,4.00128,2499.2,2499.1,0.02]
[1729712074269,4.06443809,2499.2,2499.1,0.02]
[1729712075523,4.06443809,2499.2,2499.1,0.01]
[1729712077003,4.06443809,2499.2,2498.9,0.57]
[1729712077203,4.06443809,2499.2,2499.1,0.01]
[1729712077796,4.06443809,2499.2,2498.9,0.57]
[1729712078023,4.06443809,2499.2,2499.1,0.01]
[1729712078240,4.06443809,2499.2,2499.1,0.02]
[1729712078591,0.06315809,2499.2,2499.1,0.02]
[1729712078792,4.00099,2499.4,2499.1,0.02]
[1729712079093,0.06341723,2499.3,2499.1,0.02]
[1729712079299,4.06460723,2499.3,2499.1,0.02]
[1729712079833,4.00128,2499.2,2499.1,0.02]
[1729712080330,4.06469723,2499.2,2499.1,0.02]
[1729712081651,4.06469723,2499.2,2499.1,0.01]
[1729712081936,4.00192,2498.8,2498.7,0.01]
[1729712082295,4.06587843,2498.8,2498.7,0.01]
[1729712083014,0.06395843,2498.8,2498.7,0.01]
[1729712083697,4.06587843,2498.8,2498.7,0.01]
[1729712083931,0.06395843,2498.8,2498.7,0.01]
[1729712084702,4.06587843,2498.8,2498.7,0.01]
[1729712085137,1.5513,2499.9,2499.2,0.01]
[1729712085308,8.00075,2499.8,2499.6,0.01]
[1729712085514,4.00039,2499.8,2499.6,0.01]
[1729712085834,4.00071,2499.6,2499.4,0.02]
[1729712086020,4.0008,2499.5,2499.2,0.01]
[1729712086216,4.00071,2499.6,2499.0,0.01]
[1729712086217,4.00134,2499.2,2499.0,0.02]
[1729712086712,4.00112,2499.3,2499.2,0.01]
[1729712087619,5.55229,2499.4,2499.2,0.01]
[1729712088023,4.00112,2499.3,2499.2,0.01]
[1729712088736,4.00099,2499.4,2499.2,0.01]
[1729712089656,4.00041,2499.8,2499.5,0.01]
[1729712089808,8.00136,2499.6,2499.3,0.56]
[1729712090140,8.5513,2500.0,2499.4,0.02]
[1729712090141,4.00048,2499.7,2499.4,0.02]
[1729712090298,4.00044,2499.8,2499.4,0.02]
[1729712090500,4.00055,2499.7,2499.4,0.02]
[1729712090706,4.00048,2499.7,2499.4,0.634357]
[1729712090909,4.00048,2499.7,2499.6,0.01]
[1729712091921,4.00065,2499.6,2499.4,0.634357]
[1729712092646,0.05950538,2499.5,2499.4,0.634357]
[1729712092846,4.00064,2499.6,2499.4,0.634357]
[1729712093048,0.05950538,2499.5,2499.4,0.634357]
[1729712093251,4.00049,2499.7,2499.4,0.634357]
[1729712093444,0.05950538,2499.6,2499.4,0.634357]
[1729712095340,4.06015538,2499.6,2499.4,0.634357]
[1729712095655,4.06015538,2499.6,2499.4,0.02]
[1729712095854,0.05950538,2499.6,2499.4,0.02]
[1729712096657,4.00075,2499.6,2499.4,0.02]
[1729712096819,0.05989445,2499.5,2499.4,0.02]
[1729712097021,4.06069445,2499.5,2499.4,0.02]
[1729712100257,0.05989445,2499.5,2499.4,0.02]
[1729712100569,4.06069445,2499.5,2499.4,0.02]
[1729712100755,0.05989445,2499.5,2499.4,0.02]
[1729712103359,4.00038,2499.8,2499.4,1.03447]
[1729712103673,8.00078,2499.8,2499.4,1.03447]
[1729712103873,0.06027587,2499.7,2499.6,0.01]
[1729712104336,4.00038,2499.8,2499.6,0.01]
[1729712104535,0.06027587,2499.7,2499.6,1.5616]
[1729712104884,3.9985,2501.0,2499.6,1.5616]
[1729712104885,3.99944,2500.4,2500.1,0.01]
[1729712105032,3.99963,2500.3,2500.1,0.01]
[1729712105226,3.99944,2500.4,2500.1,0.01]
[1729712106355,0.06080197,2500.3,2500.1,0.01]
[1729712106666,0.06080197,2500.3,2500.1,1.116173]
[1729712106968,3.99898,2500.7,2500.4,0.01]
[1729712107464,3.99888,2500.7,2500.6,0.01]
[1729712107667,3.99888,2500.7,2500.6,0.02]
[1729712108378,3.99888,2500.7,2500.6,0.01]
[1729712108680,3.9992,2500.5,2500.4,0.02]
[1729712109334,3.99888,2500.7,2500.4,0.02]
[1729712109533,3.99905,2500.6,2500.4,0.02]
[1729712110340,3.99888,2500.7,2500.4,0.02]
[1729712110537,7.99786,2500.7,2500.6,0.01]
[1729712110763,3.99888,2500.7,2500.6,0.01]
[1729712112142,3.99874,2500.8,2500.6,0.01]
[1729712112354,3.99874,2500.8,2500.6,0.02]
[1729712113149,3.99851,2501.0,2500.6,0.02]
[1729712113456,3.99857,2500.9,2500.6,0.02]
[1729712113838,3.99872,2500.8,2500.6,0.02]
[1729712114040,7.99754,2500.8,2500.6,0.02]
[1729712114334,3.99888,2500.7,2500.6,0.02]
[1729712114657,3.99872,2500.8,2500.6,0.01]
[1729712114863,3.99872,2500.8,2500.7,0.01]
[1729712115048,3.99851,2501.0,2500.8,0.01]
[1729712115049,3.99847,2501.0,2500.8,0.01]
[1729712115437,7.99696,2501.0,2500.8,0.01]
[1729712115653,3.99847,2501.0,2500.8,0.01]
[1729712117367,7.99696,2501.0,2500.8,0.01]
[1729712117554,3.99847,2501.0,2500.8,0.01]
[1729712118081,5.38307394,2501.3,2500.8,0.01]
[1729712118278,3.99851,2501.0,2500.8,0.01]
[1729712118887,3.99856,2500.9,2500.8,0.01]
[1729712119397,5.38307394,2501.3,2500.8,0.01]
[1729712119398,3.99847,2501.0,2500.8,0.01]
[1729712120097,3.99836,2501.1,2501.0,0.01]
[1729712120275,3.99809,2501.2,2501.0,0.01]
[1729712121291,0.06229593,2501.1,2501.0,0.01]
[1729712123057,4.06053593,2501.1,2501.0,0.01]
[1729712123573,3.99856,2500.9,2500.8,0.01]
[1729712123959,4.06098544,2500.9,2500.8,0.01]
[1729712125085,0.06242544,2500.9,2500.8,1.5941]
[1729712125390,3.99777,2501.4,2501.3,0.02]
[1729712125756,3.99769,2501.5,2501.3,1.677]
[1729712126606,3.99719,2501.8,2501.6,0.01]
[1729712126759,7.99444,2501.8,2501.6,0.01]
[1729712126958,3.99719,2501.8,2501.7,0.01]
[1729712127168,3.99728,2501.7,2501.6,0.01]
[1729712129709,3.99728,2501.7,2501.5,0.01]
[1729712129710,3.99744,2501.6,2501.5,0.01]
[1729712130372,3.99744,2501.6,2500.8,4.22405]
[1729712130373,1.5897,2501.6,2501.2,0.01]
[1729712130605,3.99775,2501.5,2501.2,0.01]
[1729712130811,3.99792,2501.3,2501.2,0.01]
[1729712131543,3.99784,2501.4,2501.2,0.01]
[1729712131831,3.99763,2501.5,2501.4,0.01]
[1729712136394,4.13225484,2501.5,2501.4,0.01]
[1729712139363,3.99808,2501.2,2501.1,0.02]
[1729712139924,4.13270484,2501.2,2500.7,0.01]
[1729712140121,3.99867,2500.9,2500.8,0.01]
[1729712140517,4.13375991,2500.9,2500.8,0.01]
[1729712140741,0.13508991,2500.9,2500.8,0.01]
[1729712140952,0.13508991,2500.9,2500.8,5.67082]
[1729712141148,5.61445,2501.9,2501.4,0.01]
[1729712141149,3.99759,2501.6,2501.4,0.01]
[1729712141447,3.99759,2501.6,2501.4,0.02]
[1729712141448,3.9976,2501.5,2501.4,0.02]
[1729712143864,3.99721,2501.8,2501.7,0.01]
[1729712144336,3.99744,2501.6,2501.5,0.01]
[1729712145165,3.9973,2501.7,2501.5,0.01]
[1729712145366,3.9973,2501.7,2501.5,0.22378]
[1729712145929,3.9973,2501.7,2501.6,0.01]
[1729712149241,3.99712,2501.8,2501.7,0.01]
[1729712150036,3.99728,2501.7,2501.6,0.01]
[1729712151167,3.99728,2501.7,2501.6,0.02]
[1729712151358,4.13245376,2501.7,2501.6,0.02]
[1729712159261,4.13245376,2501.7,2501.6,0.01]
[1729712162079,0.13517376,2501.7,2501.6,0.02]
[1729712162236,0.13517376,2501.7,2501.6,1.03475298]
[1729712162437,0.13517376,2501.7,2501.6,2.59615298]
[1729712162653,3.99704,2501.9,2501.6,2.1314]
[1729712163351,3.99704,2501.9,2501.8,0.01]
[1729712163666,3.99696,2501.9,2501.8,0.02]
[1729712165747,3.99696,2501.9,2501.8,0.01]
[1729712166055,3.99728,2501.7,2501.6,0.01]
[1729712166872,4.13247661,2501.7,2501.6,0.01]
[1729712174013,5.50884,2501.6,2501.5,0.01]
[1729712174291,5.50884,2501.6,2501.4,0.01]
[1729712174292,3.9976,2501.5,2501.4,0.01]
[1729712174490,5.84139699,2501.5,2501.4,0.01]
[1729712175067,5.9765936,2501.5,2501.4,0.01]
[1729712176299,4.13279661,2501.5,2501.4,0.01]
[1729712178659,5.57732,2501.3,2501.1,0.01]
[1729712178866,3.99856,2500.9,2500.8,0.01]
[1729712179065,3.99842,2501.0,2500.9,0.01]
[1729712179900,1.5794,2501.6,2501.1,0.01]
[1729712180100,3.99776,2501.4,2501.3,0.01]
[1729712180903,3.99776,2501.4,2501.3,0.02]
[1729712181395,0.1350137,2501.4,2501.3,0.02]
[1729712181804,3.99753,2501.6,2501.3,0.02]
[1729712181969,0.1350137,2501.4,2501.3,0.02]
[1729712182167,3.99753,2501.6,2501.3,0.02]
[1729712182460,0.1350137,2501.4,2501.3,0.02]
[1729712182665,3.99761,2501.5,2501.3,0.02]
[1729712182892,0.1350137,2501.4,2501.3,0.02]
[1729712183287,4.1327737,2501.4,2501.3,0.02]
[1729712184898,0.1350137,2501.4,2501.3,0.02]
[1729712185276,3.99721,2501.8,2501.7,0.01]
[1729712185607,3.99721,2501.8,2501.7,0.02]
[1729712186300,3.99691,2502.0,2501.7,0.02]
[1729712186504,3.9968,2502.0,2501.9,0.01]
[1729712187002,3.99679,2502.1,2501.9,0.01]
[1729712187211,3.99611,2502.5,2502.1,0.01]
[1729712187364,3.99611,2502.5,2502.3,0.01]
[1729712188394,3.99581,2502.7,2502.5,0.01]
[1729712188593,3.99584,2502.6,2502.5,0.01]
[1729712189886,1.6121,2502.4,2502.1,0.01]
[1729712190083,1.6121,2502.4,2501.8,0.02]
[1729712190084,3.99696,2501.9,2501.8,0.02]
[1729712190608,3.99681,2502.0,2501.8,0.02]
[1729712191609,3.99696,2501.9,2501.8,0.02]
[1729712191809,3.99681,2502.0,2501.8,0.02]
[1729712192016,3.99696,2501.9,2501.8,0.02]
[1729712192217,3.99728,2501.7,2501.6,0.02]
[1729712192782,3.99693,2502.0,2501.9,0.01]
[1729712193688,3.99664,2502.1,2501.9,0.01]
[1729712194021,3.9968,2502.0,2501.9,0.01]
[1729712196120,4.13186704,2502.0,2501.9,0.01]
[1729712198621,3.99712,2501.8,2501.7,0.01]
[1729712198921,4.13269757,2501.8,2501.7,0.01]
[1729712202094,0.13557757,2501.8,2501.7,0.01]
[1729712203197,3.9968,2502.0,2501.7,0.01]
[1729712203506,3.9968,2502.0,2501.9,0.01]
[1729712203702,4.13237757,2502.0,2501.9,0.01]
[1729712207444,3.99712,2501.8,2501.7,0.01]
[1729712207861,4.13310144,2501.8,2501.7,0.01]
[1729712209158,0.13598144,2501.8,2501.7,1.5347]
[1729712209337,3.99665,2502.1,2501.8,0.55]
[1729712209714,0.13578336,2502.0,2501.8,0.55]
[1729712210461,4.13266336,2502.0,2501.8,0.55]
[1729712210617,3.99688,2502.0,2501.8,0.55]
[1729712210962,0.13582146,2501.9,2501.8,0.55]
[1729712211963,0.13582146,2501.9,2501.8,0.75947]
[1729712212330,4.13278146,2501.9,2501.8,0.01]
[1729712212531,3.99728,2501.7,2501.6,0.02]
[1729712212731,4.1331167,2501.7,2501.6,0.02]
[1729712214057,3.99808,2501.2,2501.1,0.01]
[1729712214267,3.99808,2501.2,2501.1,0.02]
[1729712214476,4.13389384,2501.2,2501.1,0.02]
[1729712214832,4.13389384,2501.2,2501.1,0.01]
[1729712215053,7.87889024,2501.2,2501.1,0.01]
[1729712215279,4.13389384,2501.2,2501.1,0.01]
[1729712220376,3.9984,2501.0,2500.9,0.02]
[1729712220681,4.13369563,2501.0,2500.9,0.02]
[1729712220889,7.87869203,2501.0,2500.9,0.01]
[1729712221391,3.99904,2500.6,2500.5,0.02]
[1729712221572,0.13464016,2500.6,2500.5,0.02]
[1729712222078,4.13368016,2500.6,2500.5,0.02]
[1729712226064,4.13368016,2500.6,2500.5,0.01]
[1729712226375,3.99936,2500.4,2500.3,0.02]
[1729712226588,7.87861534,2500.4,2500.3,0.02]
[1729712226897,3.99984,2500.1,2500.0,0.01]
[1729712227108,7.7448364,2500.1,2500.0,0.01]
[1729712227403,7.87909534,2500.1,2500.0,0.02]
[1729712227574,4.13409894,2500.1,2500.0,0.02]
[1729712227771,0.13425894,2500.1,2500.0,0.02]
[1729712227994,3.99943,2500.4,2500.3,0.01]
[1729712228174,0.13393097,2500.4,2500.3,0.01]
[1729712229309,0.13393097,2500.4,2500.3,1.5991]
[1729712229479,0.13393097,2500.4,2500.3,2.22298258]
[1729712229677,3.99915,2500.6,2500.3,2.22298258]
[1729712229878,0.13386231,2500.4,2500.3,2.22298258]
[1729712230080,3.99915,2500.6,2500.4,0.01]
[1729712230812,3.9992,2500.5,2500.4,0.01]
[1729712235272,7.7438764,2500.7,2500.6,0.01]
[1729712235273,11.7428764,2500.7,2500.6,0.01]
[1729712237211,7.7438764,2500.7,2500.6,0.02]
[1729712237708,3.99888,2500.7,2500.6,0.02]
[1729712239016,7.7438764,2500.7,2500.6,0.02]
[1729712239174,7.7438764,2500.7,2500.6,0.01]
[1729712239876,7.7438764,2500.7,2500.4,0.01]
[1729712239877,3.9992,2500.5,2500.4,0.02]
[1729712241176,4.13292513,2500.5,2500.4,0.02]
[1729712242202,0.13372513,2500.5,2500.4,0.02]
[1729712242420,3.99847,2501.0,2500.9,0.01]
[1729712243341,3.99819,2501.2,2500.9,0.01]
[1729712243540,3.99835,2501.1,2500.9,0.01]
[1729712244145,3.99835,2501.1,2501.0,0.01]
[1729712246243,3.99787,2501.4,2501.3,0.01]
[1729712246453,3.99753,2501.6,2501.3,1.5447]
[1729712246640,7.99508,2501.6,2501.5,0.01]
[1729712246847,3.99753,2501.6,2501.5,0.01]
[1729712247354,5.60865,2501.9,2501.5,0.01]
[1729712247552,3.99698,2501.9,2501.7,0.01]
[1729712247913,3.99698,2501.9,2501.7,1.5447]
[1729712248354,3.99673,2502.1,2501.9,0.01]
[1729712249538,3.99632,2502.3,2502.1,0.01]
[1729712249824,3.99632,2502.3,2502.2,0.01]
[1729712251155,3.99619,2502.4,2502.2,0.01]
[1729712251307,3.996,2502.5,2502.3,0.01]
[1729712251634,3.996,2502.5,2502.4,0.01]
[1729712254718,3.99587,2502.6,2502.5,0.01]
[1729712254914,3.99555,2502.8,2502.7,0.01]
[1729712255142,3.99521,2503.0,2502.9,0.01]
[1729712255545,3.99521,2503.0,2502.9,0.02]
[1729712256240,4.13049777,2503.0,2502.9,0.02]
[1729712256443,0.13528777,2503.0,2502.9,0.02]
[1729712256758,4.13048777,2503.0,2502.9,0.02]
[1729712256915,0.13528777,2503.0,2502.9,0.02]
[1729712257115,4.13048777,2503.0,2502.9,0.02]
[1729712257647,4.13048777,2503.0,2502.9,1.5847]
[1729712257952,0.13528777,2503.0,2502.9,1.5847]
[1729712258159,0.13528777,2503.0,2502.9,2.142735]
[1729712258395,3.99473,2503.3,2503.1,0.01]
[1729712258518,3.99488,2503.2,2503.1,0.01]
[1729712259829,3.99488,2503.2,2503.1,0.02]
[1729712261456,3.99473,2503.3,2503.1,0.02]
[1729712261767,3.99488,2503.2,2503.1,0.02]
[1729712262225,3.99488,2503.2,2503.1,0.01]
[1729712262575,3.99504,2503.1,2502.9,0.01]
[1729712262777,3.9952,2503.0,2502.9,0.01]
[1729712264186,7.7401964,2503.0,2502.8,0.01]